Cogmind - Beta 16 @@@ ROGUE MODE // 2025.11.16 @ 14:29:01 Player: Uranium-235 Result: Self-destructed Performance ------------- Evolutions (4) 2000 Regions Visited (12) 2400 Robots Destroyed (90) 450 Value Destroyed (3368) 3368 Prototype IDs (11) 220 Alien Tech Used (0) 0 Bonus (1469) 1469 TOTAL SCORE: 9907 Bonus ------- High Alert Combat Kills 225 Follower Combat Kills 374 Entered Garrisons 400 Used RIF Installer 500 Friendly Fire -30 Cogmind --------- Core Integrity 169/850 Matter 103/300 Energy 76/100 System Corruption 11% Temperature Cool (0) Movement Core (50) Location -6/Garrison Parts ------- > --- POWER (2) -------- (None) > --- PROPULSION (5) --- (None) > --- UTILITY (6) ------ Improved Signal Interpreter Component Analysis Suite > --- WEAPON (2) ------- (None) > --- INVENTORY (5) ---- Backup Power I Large Storage Unit Hacking Suite Peak State ------------ > --- POWER ------------ Reinforced Deuterium Engine > --- PROPULSION ------- Carbon-fiber Leg Titanium Leg Titanium Leg VSS Leg > --- UTILITY ---------- Large Storage Unit Structural Scanner Machine Analyzer Experimental Sensor Array Core Analyzer Transmission Jammer > --- WEAPON ----------- Remote Datajack Powered Hammer > --- INVENTORY -------- Hybrid Deuterium Engine Titanium Leg VSS Leg Hardened Heavy Armor Plating Hardened Heavy Armor Plating Hacking Suite System Shield Relay Coupler [NC] Dynamic Insulation System Flak Gun Heavy Assault Cannon Improved Grenade Launcher [Rating: 51] Favorites ----------- Power Ion Engine Engine Ion Engine Power Core Enhanced Nuclear Core Propulsion Light Treads Treads Light Treads Leg Carbon-fiber Leg Hover Unit Backup Propulsion I Utility Large Storage Unit Device Structural Scanner Storage Large Storage Unit Processor Machine Analyzer Hackware Makeshift Hacking Suite Protection Hardened Light Armor Plating Weapon Small Laser Energy Gun Small Laser Ballistic Gun Assault Rifle Ballistic Cannon Advanced Assault Cannon Launcher Heavy Rocket Launcher Special Weapon Remote Datajack Impact Weapon Powered Hammer Slashing Weapon Makeshift Sword Build | -11 -10 -10 -10 -9 -8 -8 -8 -7 -7 -7 -6 -6 ------- Run | Yrd Mat Min Exi Min Mat Gar Mat Fac Was Fac Fac Gar Slots Evolved 8 | . . . . . 4 . . 2 . . 2 . Power 1 | . . . . . . . . . . . 1 . Propulsion 3 | . . . . . 2 . . . . . 1 . Utility 4 | . . . . . 2 . . 2 . . . . Weapon . | . . . . . . . . . . . . . Parts Attached 85 | 7 9 1 1 4 17 6 15 3 3 6 12 1 Power 13 | 1 2 . . 1 3 1 1 . . 1 3 . Engine 11 | 1 2 . . 1 3 1 1 . . . 2 . Core 2 | . . . . . . . . . . 1 1 . Reactor . | . . . . . . . . . . . . . Propulsion 27 | 2 2 . . 1 5 3 8 . . 4 2 . Treads 2 | . 2 . . . . . . . . . . . Leg 24 | 2 . . . 1 5 3 8 . . 4 1 . Wheel . | . . . . . . . . . . . . . Hover 1 | . . . . . . . . . . . 1 . Flight . | . . . . . . . . . . . . . Utility 24 | 2 3 . . . 6 1 3 3 1 . 4 1 Device 6 | 1 1 . . . 1 1 . 1 . . 1 . Storage 6 | 1 2 . . . 1 . . . . . 2 . Processor 4 | . . . . . 1 . 2 . . . 1 . Hackware 2 | . . . . . 1 . . . 1 . . . Protection 6 | . . . . . 2 . 1 2 . . . 1 Artifact . | . . . . . . . . . . . . . Weapon 21 | 2 2 1 1 2 3 1 3 . 2 1 3 . Energy Gun 5 | 1 2 . . 1 . . 1 . . . . . Energy Cannon . | . . . . . . . . . . . . . Ballistic Gun 3 | 1 . . . 1 . . . . . . 1 . Ballistic Cannon 7 | . . 1 . . 2 1 1 . . 1 1 . Launcher 2 | . . . . . . . 1 . . . 1 . Special Weapon 1 | . . . . . . . . . 1 . . . Impact Weapon 1 | . . . . . . . . . 1 . . . Slashing Weapon 2 | . . . 1 . 1 . . . . . . . Piercing Weapon . | . . . . . . . . . . . . . Special Melee Weapon . | . . . . . . . . . . . . . Unidentified Prototypes 3 | . . . . . 2 . . . . 1 . . Parts Lost 42 | . 4 . . 1 . 3 5 . . 5 17 7 Power 6 | . . . . . . . . . . 1 5 . Propulsion 14 | . . . . 1 . 3 2 . . 2 5 1 Utility 9 | . 1 . . . . . . . . 1 3 4 Weapon 13 | . 3 . . . . . 3 . . 1 4 2 Highest Loss Streak 7 | . 2 . . 1 . 1 2 . . 4 7 7 To Critical Strikes . | . . . . . . . . . . . . . Average Backups 13 | 5 13 14 14 14 14 14 14 12 12 12 7 4 Power 1 | . 1 2 1 1 2 1 . . 1 1 . 1 Propulsion 2 | 3 4 4 4 2 . 1 1 2 2 1 . . Utility 5 | . 4 5 6 6 6 6 7 6 6 6 5 2 Weapon 3 | 1 2 3 3 4 4 3 3 2 3 3 1 . Tool/Special . | . . . . . . . . . . . . . Unused Backups 35 | . 8 . 3 . 8 3 6 2 . 2 2 1 Power 7 | . . . 1 . 4 1 1 . . . . . Propulsion 6 | . 5 . . . . . 1 . . . . . Utility 13 | . 3 . 1 . . 1 3 1 . 1 2 1 Weapon 9 | . . . 1 . 4 1 1 1 . 1 . . Tool/Special . | . . . . . . . . . . . . . Average Slot Usage (%) 93 | . 99 100 100 99 99 98 95 90 99 95 57 48 Engine 10 | . 14 14 14 14 9 9 9 7 7 2 9 . Treads 10 | . 21 28 28 2 . . . . . . . . Leg 16 | . 5 . . 25 35 34 35 30 30 29 8 . Device 11 | . 13 14 14 14 10 9 6 20 18 10 3 13 Storage 10 | . 14 14 14 14 9 9 9 7 7 7 4 6 Processor 5 | . . . . . 7 . 9 15 15 15 12 13 Hackware 3 | . . . . . 6 9 7 . 4 7 3 . Protection 1 | . . . . . 2 8 3 1 . 1 . 2 Energy Gun 6 | . 13 14 14 12 . . . . . . . . Ballistic Gun 2 | . 13 . . 2 1 . . . . . . 6 Ballistic Cannon 7 | . . 14 11 10 4 17 14 7 . 1 4 . Slashing Weapon 1 | . . . 2 4 11 . . . . . . . Peak Build Rating 51 | 8 8 9 13 15 39 39 40 49 51 50 43 21 Average Rating 23 | 6 7 8 10 12 33 32 33 48 49 46 28 19 On Entrance 23 | . 8 7 9 13 13 38 34 36 49 48 26 19 Avg Prop Armor Cover (%) 7 | . . . . . 7 . . 5 . . . . Naked Turns . | . . . . . . . . . . . . . Heaviest Build 74 | 14 29 30 30 32 46 46 51 68 50 61 74 19 Greatest Support 66 | 20 40 40 40 40 50 52 61 61 61 66 44 6 Greatest Overweight (x) 3 | . . . . 1 1 1 1 1 . 1 3 3 Average Overweight (x) . | . . . . . . . . . . . . 1 Largest Inventory Capacity 15 | 8 15 15 15 15 15 15 15 15 15 15 15 8 Average Capacity 14 | 7 13 15 15 15 15 15 15 15 15 15 10 8 Most Carried 15 | 8 15 15 15 15 15 15 15 15 15 15 14 5 Average Carried 13 | 5 13 14 14 14 14 14 14 14 14 14 7 4 Final Capacity 15 | 8 15 15 15 15 15 15 15 15 15 15 8 5 Final Carried 15 | 8 15 15 15 15 15 15 15 15 15 15 5 3 Class Distribution -------------------- 79% | Mutant 14% | Scavenger-Mutant 4% | Gladiator Dominant Class ---------------- Mutant | -10/Materials Mutant | -10/Mines Mutant | -10/Exiles Mutant | -9/Mines Gladiator | -8/Materials Mutant | -8/Garrison Scavenger-Mutant | -8/Materials Scavenger-Mutant | -7/Factory Mutant | -7/Waste Mutant | -7/Factory Mutant | -6/Factory Mutant | -6/Garrison Resources | -11 -10 -10 -10 -9 -8 -8 -8 -7 -7 -7 -6 -6 ----------- Run | Yrd Mat Min Exi Min Mat Gar Mat Fac Was Fac Fac Gar Matter Collected 3010 | 306 198 . 118 66 242 637 633 55 . 420 318 17 Remotely . | . . . . . . . . . . . . . Salvage Created 3514 | 151 437 . 187 121 345 504 912 34 . 601 179 43 Parts 159 | 9 26 . 4 9 18 20 53 . . 15 1 4 Haulers Intercepted 4 | . . . . . 2 . 2 . . . . . Recyclers Shooed 6 | 2 4 . . . . . . . . . . . Parts Field Recycled . | . . . . . . . . . . . . . Retrieved Matter . | . . . . . . . . . . . . . Parts Self-Destructed . | . . . . . . . . . . . . . Prevented . | . . . . . . . . . . . . . Parts Restored . | . . . . . . . . . . . . . Kills | -11 -10 -10 -10 -9 -8 -8 -8 -7 -7 -7 -6 -6 ------- Run | Yrd Mat Min Exi Min Mat Gar Mat Fac Was Fac Fac Gar Combat Hostiles Destroyed 66 | . 11 . . 3 4 11 17 1 . 12 5 2 Melee 9 | . . . . 2 4 . . . . 3 . . Guns 14 | . 11 . . 1 . . . . . . . 2 Cannons 38 | . . . . . . 11 17 1 . 5 4 . Classes Destroyed 15 | 2 3 . . 1 3 2 3 . . . 1 . Worker 3 | . 2 . . . . . 1 . . . . . Builder 6 | . . . . . 2 . 1 . . 3 . . Tunneler 4 | 3 . . . . 1 . . . . . . . Hauler 4 | . . . . . 2 . 2 . . . . . Recycler 5 | 1 1 . . . . . 3 . . . . . Watcher 2 | . . . . . . . 2 . . . . . Swarmer 14 | . 6 . . 1 . 2 3 . . . . 2 Grunt 26 | . 5 . . 1 3 1 5 . . 8 3 . Brawler 2 | . . . . . . 1 1 . . . . . Duelist 3 | . . . . 1 . 1 . . . . 1 . Sentry 12 | . . . . . . 5 4 1 . 2 . . Specialist 2 | . . . . . . . 2 . . . . . Hunter 5 | . . . . . 1 1 1 . . 2 . . Programmer 1 | . . . . . . . . . . . 1 . Heavy 1 | . . . . . . . 1 . . . . . Best Kill Streak 10 | 2 5 . . 2 3 7 10 1 . 6 2 2 Combat Bots Only 7 | . 5 . . 2 2 7 5 1 . 5 2 2 Max Kills in Single Turn 2 | 1 1 . . 1 1 1 1 1 . 1 1 2 Gunslinging . | . . . . . . . . . . . . . Exploded . | . . . . . . . . . . . . . Melee 1 | . . . . 1 1 . . . . 1 . . Uniques/NPCs Destroyed . | . . . . . . . . . . . . . Combat | -11 -10 -10 -10 -9 -8 -8 -8 -7 -7 -7 -6 -6 -------- Run | Yrd Mat Min Exi Min Mat Gar Mat Fac Was Fac Fac Gar Hostile Shots Fired 784 | . 91 . . 19 21 86 102 36 . 175 149 105 Missed 250 | . 23 . . 9 8 24 35 13 . 45 59 34 Hits 534 | . 68 . . 10 13 62 67 23 . 130 90 71 Melee 9 | . . . . 1 . 6 . . . 2 . . Projectile 525 | . 68 . . 9 13 56 67 23 . 128 90 71 AOE 1 | . . . . . . . . . . 1 . . Critical Strikes 11 | . . . . . . 3 2 . . 4 2 . Part Disruptions 1 | . . . . . . . . 1 . . . . Damage Taken 7815 | . 748 . . 110 210 795 1080 215 . 1850 2067 740 Core 1363 | . 103 . . 28 36 39 179 45 . 252 469 212 Absorbed by Shields . | . . . . . . . . . . . . . Ignored by Resistances 34 | . . . . . . . 34 . . . . . Regen/Repaired (Parts) 139 | . 139 . . . . . . . . . . . Core Remaining (%) 64 | 100 . . . 47 . . 53 . . 57 . . Volleys Fired 244 | 12 42 . 13 1 10 41 62 12 3 17 26 5 Largest 2 | 2 2 . 2 1 2 2 2 1 1 1 2 1 Hottest 109 | 60 60 . 70 40 80 80 109 50 5 50 74 28 Shots Fired 406 | 24 79 . 27 1 20 79 103 12 3 17 36 5 Gun 135 | 24 79 . 14 1 6 . 6 . . . . 5 Cannon 260 | . . . 13 . 14 79 97 12 . 16 29 . Launcher 5 | . . . . . . . . . . . 5 . Special 6 | . . . . . . . . . 3 1 2 . Kinetic 326 | 12 43 . 13 . 20 79 97 12 . 16 29 5 Thermal 69 | 12 36 . 14 1 . . 6 . . . . . Explosive 5 | . . . . . . . . . . . 5 . Electromagnetic . | . . . . . . . . . . . . . Robot Hit Streak 24 | 4 9 . 24 1 3 6 12 10 12 3 6 3 Robot Miss Streak 8 | 2 4 . 1 . 5 4 3 . 1 5 8 5 Penetration Max . | . . . . . . . . . . . . . Secondary Targets 1 | . 1 . . . . . . . . . . . Max Gunslinging Chain 1 | . 1 . . . . . . . . . . . Shots Hit Robots 307 | 13 49 . 31 6 24 44 59 6 2 29 39 5 Core Hits 148 | 5 23 . 8 3 9 17 31 1 . 14 31 6 Critical Kills 1 | . . . . . . . . . . 1 . . Critical Parts Destroyed 5 | . . . . . . . . . . 4 1 . Critical Strikes 16 | . . . 1 . 1 2 5 . . 6 1 . Blast 10 | . . . 1 . 1 2 5 . . 1 . . Smash 6 | . . . . . . . . . . 5 1 . Melee Attacks 76 | . . . 8 5 14 7 . . . 27 15 . Impact 42 | . . . . . . . . . . 27 15 . Slashing 34 | . . . 8 5 14 7 . . . . . . Piercing . | . . . . . . . . . . . . . Sneak Attacks 7 | . . . . 1 4 . . . . 2 . . Combat Hostiles . | . . . . . . . . . . . . . Follow-up Attacks . | . . . . . . . . . . . . . Damage Inflicted 8971 | 148 627 . 907 204 840 1387 1871 323 . 1577 1033 54 Guns 1111 | 148 627 . 146 10 31 . 95 . . . . 54 Cannons 4467 | . . . 161 . 228 983 1746 323 . 598 428 . Explosions 376 | . . . . . . . 30 . . 92 254 . Melee 3017 | . . . 600 194 581 404 . . . 887 351 . Ramming . | . . . . . . . . . . . . . Kinetic 4985 | 70 363 . 161 . 259 983 1746 323 . 598 428 54 Thermal 623 | 78 264 . 146 10 . . 125 . . . . . Explosive 254 | . . . . . . . . . . . 254 . Electromagnetic 92 | . . . . . . . . . . 92 . . Impact 1238 | . . . . . . . . . . 887 351 . Slashing 1779 | . . . 600 194 581 404 . . . . . . Piercing . | . . . . . . . . . . . . . Highest Corruption 11 | . 1 1 1 1 . . . . . 1 11 11 Average Corruption 2 | . 1 1 1 1 . . . . . 1 10 11 Corruption Purged . | . . . . . . . . . . . . . Corruption Blocked . | . . . . . . . . . . . . . Effects 42 | . 1 2 18 2 . . . . . 2 15 2 Message Errors 8 | . . . 5 . . . . . . 1 2 . Matter Fused 11 | . . 1 3 2 . . . . . . 4 1 Heat Flow Errors 6 | . . . 4 . . . . . . . 2 . Energy Discharges 2 | . . . 2 . . . . . . . . . Parts Rejected 1 | . . . . . . . . . . . 1 . Data Loss (minor) 8 | . . 1 2 . . . . . . 1 3 1 Data Loss (major) 2 | . . . . . . . . . . . 2 . Misfires 3 | . 1 . 1 . . . . . . . 1 . Alerts 1 | . . . 1 . . . . . . . . . Overload Shots . | . . . . . . . . . . . . . Overflow Damage 717 | . . . 145 35 28 38 46 35 . 320 70 . Projectiles 130 | . . . . . . 38 46 35 . 11 . . Explosions . | . . . . . . . . . . . . . Melee 587 | . . . 145 35 28 . . . . 309 70 . Knockbacks 57 | . . . 2 . 1 4 14 . . 10 26 . Impact 8 | . . . . . . . . . . 4 4 . Kinetic 46 | . . . 2 . 1 4 11 . . 6 22 . Secondary 3 | . . . . . . . 3 . . . . . Self-Inflicted Damage 80 | . . . . . . . 80 . . . . . Shots 1 | . . . . . . . 1 . . . . . Rammed . | . . . . . . . . . . . . . Targets Rammed . | . . . . . . . . . . . . . Kicked . | . . . . . . . . . . . . . Crushed . | . . . . . . . . . . . . . Highest Temperature 405 | . 46 . 280 . 6 28 226 130 . 387 405 1 Average Temperature 85 | . 15 . 69 . 2 6 34 43 . 223 183 1 Received Heat Transfer 2235 | . 291 . . . 63 207 279 60 . 798 441 96 Effects 5 | . . . 2 . . . . . . 1 2 . Shutdowns 1 | . . . . . . . . . . . 1 . Energy Bleed 1 | . . . . . . . . . . . 1 . Interference 3 | . . . 2 . . . . . . 1 . . Siege Activations . | . . . . . . . . . . . . . Martial Activations . | . . . . . . . . . . . . . Shielding Activations . | . . . . . . . . . . . . . Robots Disrupted . | . . . . . . . . . . . . . Combat Hostiles . | . . . . . . . . . . . . . Robots Corrupted 7 | . . . . . . . . . . 6 1 . Combat Hostiles 5 | . . . . . . . . . . 4 1 . Parts Fried 8 | . . . . . . . . . . 8 . . Impact Corruptions 19 | . . . . . . . . . . 13 6 . Robots Melted . | . . . . . . . . . . . . . Combat Hostiles . | . . . . . . . . . . . . . Parts Melted 1 | . . . . 1 . . . . . . . . Heat Transferred 1360 | 175 600 . 325 25 . . 235 . . . . . Parts Sabotaged . | . . . . . . . . . . . . . Parts Stolen . | . . . . . . . . . . . . . Parts Stripped . | . . . . . . . . . . . . . Power Chain Reactions . | . . . . . . . . . . . . . Alert | -11 -10 -10 -10 -9 -8 -8 -8 -7 -7 -7 -6 -6 ------- Run | Yrd Mat Min Exi Min Mat Gar Mat Fac Was Fac Fac Gar Maximum Alert Level 3 | . . . . . . 2 3 2 . 1 . . Low Security (%) 73 | 100 100 100 . 100 100 36 . . 100 88 100 100 Level 1 14 | . . . . . . 50 26 98 . 11 . . Level 2 6 | . . . . . . 12 38 2 . . . . Level 3 4 | . . . . . . . 35 . . . . . Level 4 . | . . . . . . . . . . . . . Level 5 . | . . . . . . . . . . . . . High Security . | . . . . . . . . . . . . . Max Security . | . . . . . . . . . . . . . Peak Influence 767 | 5 166 23 . 64 84 442 767 407 128 346 169 50 Initial 331 | . . 23 . . . . 215 331 128 19 169 . Average 153 | 1 73 1 . 16 40 247 547 307 82 88 60 3 Influence Increases 3193 | 20 358 . 10 128 247 472 938 186 . 602 182 50 Destroy 0b10 Robot/C 1600 | . 220 . . 100 140 280 460 20 . 240 100 40 Destroy 0b10 Robot/NC 160 | 20 15 . 10 . 40 10 50 . . 15 . . Destroy Leader 356 | . 50 . . 20 38 20 138 10 . 50 20 10 Allied During Kill 79 | . . . . 8 13 12 46 . . . . . Successful Hack 110 | . 27 . . . 13 10 44 . . 5 11 . Disable Machine 270 | . . . . . . 15 120 . . 105 30 . Anti-Garrison Action 350 | . . . . . . 50 . 150 . 150 . . Destroy Structure 133 | . 1 . . . 3 30 80 6 . 7 6 . Lose Combat Pursuer 135 | . 45 . . . . 45 . . . 30 15 . Influence Decreases 3183 | 20 298 60 10 128 247 30 651 548 339 284 528 40 Entered New Map 1087 | . . 37 . . . . 227 398 239 9 177 . Time Decay 1636 | 20 258 23 10 106 194 . 334 150 100 225 216 . Lost Part 347 | . 40 . . 2 . 30 50 . . 50 135 40 Lost Ally 80 | . . . . 20 20 . 40 . . . . . Purge Threat 33 | . . . . . 33 . . . . . . . Squads Dispatched 17 | . 2 . . . 1 . 5 3 . 5 1 . Investigation 2 | . 1 . . . . . . . . 1 . . Extermination . | . . . . . . . . . . . . . Reinforcement 9 | . 1 . . . 1 . 4 1 . 2 . . Assault 4 | . . . . . . . . 2 . 2 . . Garrison 2 | . . . . . . . 1 . . . 1 . Intercept . | . . . . . . . . . . . . . Searches Triggered . | . . . . . . . . . . . . . Construction Impeded 4 | . . . . . 1 . 2 . . 1 . . Haulers Reinforced . | . . . . . . . . . . . . . Active Scanning Responses . | . . . . . . . . . . . . . Cargo Convoy Interrupts . | . . . . . . . . . . . . . Stealth | -11 -10 -10 -10 -9 -8 -8 -8 -7 -7 -7 -6 -6 --------- Run | Yrd Mat Min Exi Min Mat Gar Mat Fac Was Fac Fac Gar Distress Signals 8 | . 4 . . . 1 . 2 . . 1 . . Communications Jammed . | . . . . . . . . . . . . . Distress Signals . | . . . . . . . . . . . . . Times Spotted 133 | . 28 . . 5 9 15 27 2 5 28 8 6 Peak Tracking Total 11 | . 5 . . 3 3 10 4 1 4 11 3 6 Tactical Retreats 6 | . 2 . . . . 2 . . . 1 1 . Traps | -11 -10 -10 -10 -9 -8 -8 -8 -7 -7 -7 -6 -6 ------- Run | Yrd Mat Min Exi Min Mat Gar Mat Fac Was Fac Fac Gar Traps Triggered 6 | . 1 . . . . 1 1 2 . 1 . . Indirectly . | . . . . . . . . . . . . . Trap Hack Attempts . | . . . . . . . . . . . . . Triggered . | . . . . . . . . . . . . . Disarmed . | . . . . . . . . . . . . . Reprogrammed . | . . . . . . . . . . . . . Reused . | . . . . . . . . . . . . . Traps Extracted . | . . . . . . . . . . . . . Installed . | . . . . . . . . . . . . . Triggered . | . . . . . . . . . . . . . Machines | -11 -10 -10 -10 -9 -8 -8 -8 -7 -7 -7 -6 -6 ---------- Run | Yrd Mat Min Exi Min Mat Gar Mat Fac Was Fac Fac Gar Machines Disabled 21 | . . . . . . 2 8 1 . 8 2 . Max in Single Turn 5 | . . . . . . 1 5 1 . 4 1 . Garrison Access 4 | . . . . . . . 1 1 . 1 1 . Garrison Relay 1 | . . . . . . 1 . . . . . . Machines Repaired . | . . . . . . . . . . . . . Machines Dismantled . | . . . . . . . . . . . . . Machines Sabotaged . | . . . . . . . . . . . . . Overloaded Fab Kills . | . . . . . . . . . . . . . Hacking | -11 -10 -10 -10 -9 -8 -8 -8 -7 -7 -7 -6 -6 --------- Run | Yrd Mat Min Exi Min Mat Gar Mat Fac Was Fac Fac Gar Machines Accessed 29 | . 6 . . . 6 1 9 1 . 1 5 . Terminals 19 | . 4 . . . 4 1 6 1 . 1 2 . Fabricators . | . . . . . . . . . . . . . Repair Stations 2 | . 1 . . . . . . . . . 1 . Recycling Units 2 | . 1 . . . . . 1 . . . . . Scanalyzers 2 | . . . . . 1 . 1 . . . . . Garrison Access 4 | . . . . . 1 . 1 . . . 2 . Total Hacks 77 | . 17 . . . 20 1 28 1 . 2 8 . Successful 44 | . 10 . . . 15 1 12 . . 2 4 . Failed 32 | . 7 . . . 5 . 15 1 . . 4 . Catastrophic 7 | . 2 . . . . . 3 1 . . 1 . Database Lockouts 1 | . . . . . . . 1 . . . . . Manual 40 | . 8 . . . 8 . 19 1 . 1 3 . Terminals 59 | . 11 . . . 15 1 25 1 . 2 4 . Fabricators . | . . . . . . . . . . . . . Repair Stations 5 | . 3 . . . . . . . . . 2 . Recycling Units 4 | . 3 . . . . . 1 . . . . . Scanalyzers 5 | . . . . . 4 . 1 . . . . . Garrison Access 4 | . . . . . 1 . 1 . . . 2 . Terminal Hacks 18 | . 3 . . . 6 1 7 . . 1 . . Part Schematic 1 | . . . . . . . 1 . . . . . Robot Analysis 3 | . . . . . 1 . 2 . . . . . Prototype ID Bank 4 | . . . . . 2 . 1 . . 1 . . Level Access Points 1 | . 1 . . . . . . . . . . . Branch Access Points 1 | . . . . . . . 1 . . . . . Emergency Access Points 1 | . . . . . . . 1 . . . . . Terminal Index 3 | . 1 . . . 1 . 1 . . . . . Unreport Threat 1 | . . . . . 1 . . . . . . . Registered Components 1 | . . . . . 1 . . . . . . . Zone Layout 1 | . 1 . . . . . . . . . . . Garrison Registry 1 | . . . . . . 1 . . . . . . Fabricator Hacks . | . . . . . . . . . . . . . Repair Station Hacks 3 | . 2 . . . . . . . . . 1 . Scan Component 1 | . 1 . . . . . . . . . . . Repair 1 | . 1 . . . . . . . . . . . Refit 1 | . . . . . . . . . . . 1 . Recycling Unit Hacks 3 | . 2 . . . . . 1 . . . . . Report Inventory 2 | . 1 . . . . . 1 . . . . . Retrieve Components 1 | . 1 . . . . . . . . . . . Scanalyzer 4 | . . . . . 4 . . . . . . . Insert Component 1 | . . . . . 1 . . . . . . . Retrieve Study 3 | . . . . . 3 . . . . . . . Garrison Access Hacks 4 | . . . . . 1 . 1 . . . 2 . Unlock Access 2 | . . . . . 1 . . . . . 1 . Seal Access 2 | . . . . . . . 1 . . . 1 . Unauthorized Hacks 12 | . 3 . . . 4 . 3 . . 1 1 . Terminals 12 | . 3 . . . 4 . 3 . . 1 1 . Botnet 12 | . 3 . . . 4 . 3 . . 1 1 . Fabricators . | . . . . . . . . . . . . . Repair Stations . | . . . . . . . . . . . . . Recycling Units . | . . . . . . . . . . . . . Scanalyzers . | . . . . . . . . . . . . . Garrison Access . | . . . . . . . . . . . . . Data Cores Recovered . | . . . . . . . . . . . . . Used . | . . . . . . . . . . . . . Hacking Detections 22 | . 6 . . . 5 1 5 1 . 1 3 . Full Trace Events 1 | . 1 . . . . . . . . . . . Feedback Events 1 | . 1 . . . . . . . . . . . Corruption 1 | . 1 . . . . . . . . . . . Feedback Blocked . | . . . . . . . . . . . . . Robot Schematics Acquired . | . . . . . . . . . . . . . Robots Built . | . . . . . . . . . . . . . Authchips . | . . . . . . . . . . . . . Time . | . . . . . . . . . . . . . Total Robot Build Rating . | . . . . . . . . . . . . . Part Schematics Acquired 1 | . . . . . . . 1 . . . . . Parts Built . | . . . . . . . . . . . . . Authchips . | . . . . . . . . . . . . . Time . | . . . . . . . . . . . . . Total Part Build Rating . | . . . . . . . . . . . . . Part Studies Acquired 3 | . . . . . 3 . . . . . . . Parts Repaired 1 | . 1 . . . . . . . . . . . Time 26 | . 26 . . . . . . . . . . . Parts Recycled . | . . . . . . . . . . . . . Recycled Matter . | . . . . . . . . . . . . . Retrieved Matter . | . . . . . . . . . . . . . Retrieved Components 7 | . 7 . . . . . . . . . . . Parts Scanalyzed . | . . . . . . . . . . . . . Part Schematics Acquired . | . . . . . . . . . . . . . Parts Damaged . | . . . . . . . . . . . . . Bothacking | -11 -10 -10 -10 -9 -8 -8 -8 -7 -7 -7 -6 -6 ------------ Run | Yrd Mat Min Exi Min Mat Gar Mat Fac Was Fac Fac Gar Used RIF Installer 1 | . . . . . . 1 . . . . . . Robots Hacked 3 | . . . . . . . . . 1 1 1 . Non-combat 2 | . . . . . . . . . . 1 1 . Combat 1 | . . . . . . . . . 1 . . . Robot Hacks Applied 5 | . . . . . . . . . 2 1 2 . parse_system 1 | . . . . . . . . . 1 . . . find_chute 1 | . . . . . . . . . . . 1 . map_walls 1 | . . . . . . . . . . 1 . . ignore_targets 1 | . . . . . . . . . 1 . . . link_fov 1 | . . . . . . . . . . . 1 . Relay Couplers Released 8 | . . . . . . 5 . 1 . 2 . . Machine Destruction 8 | . . . . . . 5 . 1 . 2 . . Attached 1 | . . . . . . . . . 1 . . . Fabnet Peak Effective % . | . . . . . . . . . . . . . Robots Rewired 3 | . . . 3 . . . . . . . . . Allies Hacked . | . . . . . . . . . . . . . Hacks Repelled . | . . . . . . . . . . . . . Allies | -11 -10 -10 -10 -9 -8 -8 -8 -7 -7 -7 -6 -6 -------- Run | Yrd Mat Min Exi Min Mat Gar Mat Fac Was Fac Fac Gar Total Allies 7 | . . . 3 2 . 2 . . . . . . Largest Group 3 | . . . 3 3 3 2 2 . . . . . Highest-Rated Group 62 | . . . 37 60 60 62 62 . . . . . Highest-Rated Ally 31 | . . . 21 31 31 31 31 . . . . . Total Orders . | . . . . . . . . . . . . . Ally Attacks 102 | . . . . 13 32 10 47 . . . . . Total Damage 1606 | . . . . 247 599 189 571 . . . . . Kills 20 | . . . . 2 8 3 7 . . . . . Allies Corrupted . | . . . . . . . . . . . . . Allies Melted . | . . . . . . . . . . . . . Intel | -11 -10 -10 -10 -9 -8 -8 -8 -7 -7 -7 -6 -6 ------- Run | Yrd Mat Min Exi Min Mat Gar Mat Fac Was Fac Fac Gar Active Infowar (turns) 5825 | 104 850 438 1449 339 410 3 700 300 200 518 474 40 Sensors 1028 | . . . . . 240 3 15 255 200 315 . . Structural 4558 | . 319 438 1449 339 390 2 480 300 200 370 231 40 Seismic 635 | 104 531 . . . . . . . . . . . Machine Analysis 2019 | . . . . . . . 685 300 200 518 316 . Jamming 221 | . . . . . . . . 113 2 34 72 . Robot Analysis Total 3 | . . . . . 1 . 2 . . . . . Derelict Logs Recovered 2 | . . 1 . 1 . . . . . . . . Drone Launches . | . . . . . . . . . . . . . Drone Recoveries . | . . . . . . . . . . . . . Exploration | -11 -10 -10 -10 -9 -8 -8 -8 -7 -7 -7 -6 -6 ------------- Run | Yrd Mat Min Exi Min Mat Gar Mat Fac Was Fac Fac Gar Turns Passed 6735 | 174 863 438 1449 339 504 471 742 300 200 518 694 43 Spaces Moved 3935 | 103 430 273 848 167 327 267 480 185 136 310 392 17 Core 11 | 5 . . . . . . . . . . 5 1 Treads 1428 | . 302 273 848 5 . . . . . . . . Legs 2235 | 98 128 . . 162 327 267 480 185 136 310 142 . Wheels . | . . . . . . . . . . . . . Hover 261 | . . . . . . . . . . . 245 16 Flight . | . . . . . . . . . . . . . Fastest Speed 50 | 50 120 160 160 160 105 105 100 113 113 108 60 160 Average Speed 136 | 116 148 160 160 189 115 110 106 138 113 114 137 181 Slowest Speed 320 | 120 160 160 160 190 190 175 176 192 113 184 270 320 Overloaded Moves . | . . . . . . . . . . . . . Propulsion Burnouts . | . . . . . . . . . . . . . Robots Hopped . | . . . . . . . . . . . . . Potential Cave-ins . | . . . . . . . . . . . . . Cave-ins Triggered 1 | . . . . . . . . . . . 1 . Exploration Rate (%) 41 | 7 77 83 93 47 27 43 45 6 76 10 12 7 Regions Visited 12 Branch Regions 3 Pre-discovered Areas 1 | . . . . 1 . . . . . . . . Known Exits Taken 2 | . . . . . 1 . . . . . 1 . Unknown Exits Taken 7 | 1 1 1 1 1 . . 1 . . 1 . . Scrap Searched 1 | . . . . 1 . . . . . . . . Spaces Dug 75 | . . . . . . . 62 6 . 3 4 . Terrain Destroyed 109 | . . . . . 1 . 90 6 . 7 5 . Melee 7 | . . . . . . . . . . 3 4 . Projectile 45 | . . . . . 1 . 34 6 . 4 . . AOE 57 | . . . . . . . 56 . . . 1 . Terrain Rammed . | . . . . . . . . . . . . . Walls Destroyed . | . . . . . . . . . . . . . Machines Disabled . | . . . . . . . . . . . . . Actions | -11 -10 -10 -10 -9 -8 -8 -8 -7 -7 -7 -6 -6 --------- Run | Yrd Mat Min Exi Min Mat Gar Mat Fac Was Fac Fac Gar Total 4779 | 129 580 274 908 185 428 356 608 216 180 408 483 24 Wait 194 | . 70 . . 2 18 18 7 . 37 15 27 . Move 3926 | 102 429 272 847 166 327 266 479 185 135 309 392 17 Hop . | . . . . . . . . . . . . . Pick Up 94 | 8 17 1 4 2 18 6 18 7 1 12 . . Fast Attach 23 | 7 3 . . . 2 1 2 . . . 8 . Attach 43 | . 2 1 . 1 5 3 4 6 2 8 9 2 Detach 6 | . . . . . . . . 1 . 3 2 . Swap 56 | . 6 . 1 5 16 5 14 . 1 5 3 . Drop 82 | . 11 . 4 3 19 4 22 5 1 12 1 . Fire 244 | 12 42 . 13 1 10 41 62 12 3 17 26 5 Melee 75 | . . . 8 5 13 7 . . . 27 15 . Ram . | . . . . . . . . . . . . . Kick . | . . . . . . . . . . . . . Crush . | . . . . . . . . . . . . . Escape Stasis 5 | . . . . . . 5 . . . . . . Rewire 31 | . . . 31 . . . . . . . . . Trap . | . . . . . . . . . . . . . Miscellaneous . | . . . . . . . . . . . . . Route ------- -11/Scrapyard -10/Materials (discovered 6 exits: *Mat x3 / [*Min x2] / [*Sub]) -10/Mines (discovered 3 exits: *Mat / *Exi / [Sub]) -10/Exiles (discovered 2 exits: [*Min x2]) -9/Mines -8/Materials -8/Garrison (discovered 4 exits: *Mat x4) -8/Materials -7/Factory -7/Waste -7/Factory (discovered 2 exits: *Fac / [*Low]) -6/Factory -6/Garrison History --------- Turn | Location | Event 13 | -11/Scrapyard | Discovered new exit (range 15) 175 | -11/Scrapyard | Entered Materials 258 | -10/Materials | Discovered new exit (range 16) 314 | -10/Materials | Discovered new exit (range 3) 327 | -10/Materials | Build established: Mutant 405 | -10/Materials | Discovered new exit (range 9) 477 | -10/Materials | Identified exit to Materials 875 | -10/Materials | Derelicts attacked the area 919 | -10/Materials | Discovered new exit (range 15) 996 | -10/Materials | Repaired Lgt. Treads 1038 | -10/Materials | Entered Mines 1166 | -10/Mines | Discovered exit to Materials (range 12) 1278 | -10/Mines | Found a damaged Exp. Sensor Array with a note attached 1281 | -10/Mines | Found Prototype Device 1365 | -10/Mines | Learned 4 Materials zone layouts 1400 | -10/Mines | Discovered new exit (range 6) 1469 | -10/Mines | Deemed a non-threat by the Exiles lab entrance 1469 | -10/Mines | Discovered new exit (range 5) 1476 | -10/Mines | Entered Exiles 1476 | -10/Exiles | Found Exiles lab destroyed 1497 | -10/Exiles | Discovered new exit (range 15) 2532 | -10/Exiles | Discovered new exit (range 12) 2925 | -10/Exiles | Entered Mines 2925 | -9/Mines | Accompanied by 3 allies 3021 | -9/Mines | Core integrity fell below 50% 3204 | -9/Mines | Learned Materials stockpile data 3250 | -9/Mines | Learned location of Storage (-7) 3253 | -9/Mines | Discovered new exit (range 6) 3264 | -9/Mines | Entered Materials 3264 | -8/Materials | Accompanied by 3 allies 3264 | -8/Materials | Evolved 4 slots: Propulsion x2, Utility x2 3266 | -8/Materials | Identified Exp. Sensor Array 3269 | -8/Materials | Led the pair of lost Derelicts to an unsafe place 3396 | -8/Materials | Lost 3 allies 3629 | -8/Materials | Build established: Gladiator 3768 | -8/Materials | Identified exit to Garrison 3768 | -8/Materials | Entered Garrison 3796 | -8/Garrison | Triggered checkpoint 3914 | -8/Garrison | Triggered checkpoint 3944 | -8/Garrison | Triggered checkpoint 3954 | -8/Garrison | Build established: Mutant 3969 | -8/Garrison | Rescued a captive Derelict 3971 | -8/Garrison | Garrison Relay disabled 3976 | -8/Garrison | Destroyed 7 combat bots 3983 | -8/Garrison | Rescued a captive Derelict 4033 | -8/Garrison | Discovered new exit (range 61) 4033 | -8/Garrison | Discovered new exit (range 76) 4033 | -8/Garrison | Discovered new exit (range 49) 4033 | -8/Garrison | Discovered new exit (range 55) 4205 | -8/Garrison | Installed Relay Interface Framework 4239 | -8/Garrison | Entered Materials 4239 | -8/Materials | Accompanied by 2 allies 4641 | -8/Materials | Garrison activated, responded to threat 4738 | -8/Materials | Discovered new exit (range 8) 4877 | -8/Materials | Build established: Scavenger-Mutant 4933 | -8/Materials | Central database locked down 4981 | -8/Materials | Entered Factory 4981 | -7/Factory | Evolved 2 slots: Utility x2 5281 | -7/Factory | Sucked down chute 5281 | -7/Factory | Entered Waste 5350 | -7/Waste | Spotted C-40 Crusher 5396 | -7/Waste | Spotted C-40 Crusher 5456 | -7/Waste | Spotted C-40 Crusher 5460 | -7/Waste | Spotted C-40 Crusher 5465 | -7/Waste | Spotted C-40 Crusher 5466 | -7/Waste | Discovered new exit (range 12) 5481 | -7/Waste | Entered Factory 5645 | -7/Factory | Build established: Mutant 5669 | -7/Factory | Discovered new exit (range 5) 5904 | -7/Factory | Discovered new exit (range 10) 5999 | -7/Factory | Entered another Factory area 5999 | -6/Factory | Evolved 2 slots: Power x1, Propulsion x1 6021 | -6/Factory | Lost 4 parts (1p2n1w) 6141 | -6/Factory | Lost 3 parts (1n1u1w) 6230 | -6/Factory | Spotted B-75 Beast 6315 | -6/Factory | Crushed by falling debris 6315 | -6/Factory | System corruption reached 10% 6402 | -6/Factory | Lost 7 parts (2p2n2u1w) 6615 | -6/Factory | Core integrity fell below 50% 6625 | -6/Factory | Garrison activated, responded to threat 6686 | -6/Factory | Lost 4 parts (2p1n1w) 6693 | -6/Factory | Identified exit to Garrison 6693 | -6/Factory | Entered Garrison 6725 | -6/Garrison | Triggered checkpoint 6736 | -6/Garrison | Core integrity fell below 20% 6736 | -6/Garrison | Self-destructed Last Messages --------------- 06691_ U-05 Engineer lays Concrete. 06693_ Connecting with Garrison Access... >>Unlock Access door unlocked. 06693_ EXIT=UNLOCKED: GARRISON LOCATION=GARRISON GOAL=ESCAPE 06700_ System corrupted: Matter fused (-9). 06717_ Flak Cannon destroyed. 06725_ Beams of light sweep through the air. An alarm sounds. 06728_ System corrupted: Component data lost. 06732_ Hrd. Medium Armor Plating destroyed. 06732_ Backup Propulsion I destroyed. 06732_ S-27 Virus destroyed. 06733_ Structural Scanner destroyed. 06734_ Acquired 17 matter. 06734_ Core Analyzer destroyed. 06735_ Flak Gun destroyed. 06736_ Sml. Storage Unit destroyed. Map ----- +----------------------------------------------------+ | ?????????????????????????????????????????????????? | | ?????????????????????????????????????????????????? | | ?????????????????????????????????????????????????? | | ?????????????????????????????????????????????????? | | ?????????????????????????????????????????????????? | | ?????????????????????????????????????????????????? | | ??????????????????????#######????????????????????? | | ??????????????????????# #????????????????????? | | ??????????????????????# #????????????????????? | | ??????????????????????# #????????????????????? | | ??????????????????????### #????????????????????? | | ????????????????????????# #????????????????????? | | ????????????????????????# #????????????????????? | | ????????????????????????# #????????????????????? | | ????????????????????????# #????????????????????? | | ????????????????????????# #????????????????????? | | ????????????????????????# #????????????????????? | | ????????????????????????# #????????????????????? | | ????????????????????????# #????????????????????? | | ????????????????????????# #????????????????????? | | ???????????????????###??# #????????????????????? | | ???????????????????#YY ?# #????????????????????? | | ????????????## ##### ## #????????????????????? | | ????????? #????????????????????? | | ????????? [= #????????????????????? | | ????????????#############@=g#????????????????????? | | ????????????????????????# %s#????????????????????? | | ????????????????????????# #????????????????????? | | ????????????????????????# #????????????????????? | | ????????????????????????# #????????????????????? | | ???????????????????????? ????????????????????? | | ???????????????????????? ???????????????????? | | ????????????????????????# ###??????????????????? | | ????????????????????????# #????????????????????? | | ????????????????????????? #????????????????????? | | ????????????????????????? #????????????????????? | | ????????????????????????? #????????????????????? | | ????????????????????????? #????????????????????? | | ????????????????????????? #????????????????????? | | ????????????????????????? ????????????????????? | | ????????????????????????? ?????????????????????? | | ?????????????????????????????????????????????????? | | ?????????????????????????????????????????????????? | | ?????????????????????????????????????????????????? | | ?????????????????????????????????????????????????? | | ?????????????????????????????????????????????????? | | ?????????????????????????????????????????????????? | | ?????????????????????????????????????????????????? | | ?????????????????????????????????????????????????? | | ?????????????????????????????????????????????????? | +----------------------------------------------------+ Best States ------------- Heat Dissipation 45 Energy Generation 31 Energy Capacity 990 Matter Stores 300 Matter Capacity 300 Sight Range 16 Robot Scan Range 20 Terrain Scan Density 10 Jamming Range 12 Armor Coverage 600 Resistance: TH 10 Evasion (%) 55 Melee Accuracy 5 Core Analysis 6 Recoil Reduction 2 Offensive Hacking 11 Relay Coupler Types 1 Relay Coupler Value 23 Item Schematics ----------------- Hacking Suite | -8/Materials | Hacked Robot Schematics ------------------ None Fabricated ------------ Nothing Repaired ---------- Lgt. Treads | 1% | -10/Materials Studied --------- Aluminum Leg | -8/Materials | Hacked Carbon-fiber Leg | -8/Materials | Hacked Nuclear Core | -8/Materials | Hacked Alien Tech Used ----------------- None Achievements -------------- We Love MA Challenges ------------ None Game ------ Seed SuperchargedGrenadeActivator Manual? 0 Play Time 01:04:44 Cumulative 82.4 hours Start 2025.11.16 @ 13:08:44 End 2025.11.16 @ 14:29:01 Sessions 1 Manual Loads 0 Difficulty Rogue Special Mode None Game No. 82 Rogue 82 Adventurer 0 Explorer 0 Win Type - Total 0 Types 0/0/0/0/0/0/0/0/0/0 Lore% 32 Gallery% 45 Achievement% 34 Wizard Run 0 Options --------- Layout 1 ASCII 0 Keyboard 1 Movement Numpad Keybinds 0 Fullscreen 1 Font 24/Smallcaps Map View 50x35 Zoom Use 0% Tactical HUD 1 Map Filters NONE Filters NONE Steam 1 RUN: 32833240-0c14-41c9-9509-be18e4f55625